Cogmind - Beta 11.1 @@@ ROGUE MODE // 2022.11.17 @ 11:59:12 Player: Themeralderp Result: Destroyed by Z-Imprinter with Zionite Laser-M Performance ------------- Evolutions (1) 500 Regions Visited (6) 1200 Robots Destroyed (1) 5 Value Destroyed (10) 10 Prototype IDs (3) 60 Alien Tech Used (0) 0 Bonus (600) 600 TOTAL SCORE: 2375 Bonus ------- Met Imprinter 300 Was Imprinted 300 Cogmind --------- Core Integrity 0/400 Matter 64/300 Energy 98/100 System Corruption 0% Temperature Cool (18) Movement Core (50) Location -7/Deep Caves Parts ------- > --- POWER (1) -------- (None) > --- PROPULSION (4) --- (None) > --- UTILITY (2) ------ Improved Signal Interpreter > --- WEAPON (2) ------- (None) > --- INVENTORY (5) ---- Makeshift Hacking Suite Makeshift Hacking Suite Makeshift Hacking Suite Rocket Launcher Peak State ------------ > --- POWER ------------ Improved Deuterium Engine > --- PROPULSION ------- Carbon-fiber Leg Flexi-carbon Leg Flexi-carbon Leg > --- UTILITY ---------- Experimental Sensor Array Improved Signal Interpreter > --- WEAPON ----------- Makeshift Hammer > --- INVENTORY -------- Improved Medium Armor Plating Makeshift Hacking Suite Rocket Launcher [Rating: 34] Favorites ----------- Power Improved Deuterium Engine Engine Improved Deuterium Engine Propulsion Flexi-carbon Leg Leg Flexi-carbon Leg Utility Improved Signal Interpreter Device Experimental Sensor Array Processor Improved Signal Interpreter Weapon Makeshift Hammer Launcher Rocket Launcher Impact Weapon Makeshift Hammer Build | -11 -10 -10 -9 -9 -7 -7 ------- Run | Scr Mat Min Mat Min Zio Dee Slots Evolved 2 | . . . 2 . . . Power . | . . . . . . . Propulsion 2 | . . . 2 . . . Utility . | . . . . . . . Weapon . | . . . . . . . Parts Attached 15 | . . 4 . . 7 4 Power 1 | . . . . . . 1 Engine 1 | . . . . . . 1 Core . | . . . . . . . Reactor . | . . . . . . . Propulsion 3 | . . . . . 1 2 Treads . | . . . . . . . Leg 3 | . . . . . 1 2 Wheel . | . . . . . . . Hover . | . . . . . . . Flight . | . . . . . . . Utility 8 | . . 2 . . 5 1 Device 4 | . . . . . 4 . Storage . | . . . . . . . Processor 3 | . . 2 . . 1 . Hackware . | . . . . . . . Protection 1 | . . . . . . 1 Artifact . | . . . . . . . Weapon 3 | . . 2 . . 1 . Energy Gun . | . . . . . . . Energy Cannon . | . . . . . . . Ballistic Gun . | . . . . . . . Ballistic Cannon . | . . . . . . . Launcher 2 | . . 2 . . . . Special Weapon . | . . . . . . . Impact Weapon 1 | . . . . . 1 . Slashing Weapon . | . . . . . . . Piercing Weapon . | . . . . . . . Special Melee Weapon . | . . . . . . . Unidentified Prototypes 3 | . . . . . 3 . Parts Lost 7 | . . . . . . 7 Power 1 | . . . . . . 1 Propulsion 3 | . . . . . . 3 Utility 2 | . . . . . . 2 Weapon 1 | . . . . . . 1 Highest Loss Streak 7 | . . . . . . 7 To Critical Strikes . | . . . . . . . Average Slot Usage (%) 27 | . . 19 22 . 23 59 Engine 1 | . . . . . . 6 Leg 4 | . . . . . . 22 Device 6 | . . . . . 7 9 Processor 13 | . . 17 22 . 13 11 Impact Weapon 2 | . . . . . . 10 Naked Turns 111 | . 58 52 . . 1 . Heaviest Build 14 | . . 4 . . 4 14 Greatest Support 55 | 3 3 3 3 3 20 55 Greatest Overweight (x) 1 | . . 1 . . . . Average Overweight (x) . | . . . . . . . Largest Inventory Capacity 5 | 5 5 5 5 5 5 5 Average Capacity 5 | 5 5 5 5 5 5 5 Most Carried 5 | . . 3 3 3 5 5 Average Carried 2 | . . 1 3 3 2 2 Final Capacity 5 | 5 5 5 5 5 5 5 Final Carried 4 | . . 3 3 3 2 4 Class Distribution -------------------- 100% | Mutant Dominant Class ---------------- Mutant | -10/Materials Mutant | -10/Mines Mutant | -9/Materials Mutant | -9/Mines Mutant | -7/Zion Mutant | -7/Deep Caves Resources | -11 -10 -10 -9 -9 -7 -7 ----------- Run | Scr Mat Min Mat Min Zio Dee Matter Collected 108 | . . 30 . . 78 . Remotely . | . . . . . . . Salvage Created 7 | . . 7 . . . . Parts . | . . . . . . . Haulers Intercepted . | . . . . . . . Recyclers Shooed . | . . . . . . . Parts Field Recycled . | . . . . . . . Retrieved Matter . | . . . . . . . Parts Self-Destructed . | . . . . . . . Prevented . | . . . . . . . Kills | -11 -10 -10 -9 -9 -7 -7 ------- Run | Scr Mat Min Mat Min Zio Dee Combat Hostiles Destroyed 1 | . . 1 . . . . AOE 1 | . . 1 . . . . Classes Destroyed 1 | . . 1 . . . . Swarmer 1 | . . 1 . . . . Best Kill Streak 1 | . . 1 . . . . Combat Bots Only 1 | . . 1 . . . . Max Kills in Single Turn 1 | . . 1 . . . . Gunslinging . | . . . . . . . Exploded 1 | . . 1 . . . . Melee . | . . . . . . . Uniques/NPCs Destroyed . | . . . . . . . Combat | -11 -10 -10 -9 -9 -7 -7 -------- Run | Scr Mat Min Mat Min Zio Dee Damage Taken 973 | . 12 118 . . . 843 Core 535 | . 12 117 . . . 406 Absorbed by Shields . | . . . . . . . Core Remaining (%) 74 | 100 . 48 . . . . Volleys Fired 3 | . . 3 . . . . Largest 1 | . . 1 . . . . Hottest 33 | . . 33 . . . . Shots Fired 3 | . . 3 . . . . Gun . | . . . . . . . Cannon . | . . . . . . . Launcher 3 | . . 3 . . . . Special . | . . . . . . . Kinetic . | . . . . . . . Thermal . | . . . . . . . Explosive 3 | . . 3 . . . . Electromagnetic . | . . . . . . . Robot Hit Streak 2 | . . 2 . . . . Robot Miss Streak . | . . . . . . . Penetration Max . | . . . . . . . Secondary Targets . | . . . . . . . Shots Hit Robots 6 | . . 2 . . . 4 Core Hits 2 | . . 2 . . . . Critical Kills . | . . . . . . . Critical Parts Destroyed 1 | . . . . . . 1 Critical Strikes 1 | . . . . . . 1 Smash 1 | . . . . . . 1 Melee Attacks 22 | . . . . . 16 6 Impact 22 | . . . . . 16 6 Slashing . | . . . . . . . Piercing . | . . . . . . . Sneak Attacks . | . . . . . . . Combat Hostiles . | . . . . . . . Follow-up Attacks . | . . . . . . . Damage Inflicted 380 | . . 164 . . . 216 Guns . | . . . . . . . Cannons . | . . . . . . . Explosions 161 | . . 161 . . . . Melee 216 | . . . . . . 216 Ramming 3 | . . 3 . . . . Kinetic . | . . . . . . . Thermal . | . . . . . . . Explosive 161 | . . 161 . . . . Electromagnetic . | . . . . . . . Impact 216 | . . . . . . 216 Slashing . | . . . . . . . Piercing . | . . . . . . . Highest Corruption . | . . . . . . . Average Corruption . | . . . . . . . Corruption Purged . | . . . . . . . Corruption Blocked . | . . . . . . . Overload Shots . | . . . . . . . Overflow Damage 111 | . . 39 . . . 72 Projectiles . | . . . . . . . Explosions 39 | . . 39 . . . . Melee 72 | . . . . . . 72 Knockbacks 3 | . . . . . . 3 Impact 3 | . . . . . . 3 Kinetic . | . . . . . . . Secondary . | . . . . . . . Self-Inflicted Damage 1 | . . 1 . . . . Shots . | . . . . . . . Rammed 1 | . . 1 . . . . Targets Rammed 1 | . . 1 . . . . Kicked . | . . . . . . . Crushed . | . . . . . . . Highest Temperature 20 | . . 5 . . . 20 Average Temperature 12 | . . 5 . . . 20 Received Heat Transfer 258 | . 6 . . . . 252 Siege Activations . | . . . . . . . Robots Corrupted . | . . . . . . . Combat Hostiles . | . . . . . . . Parts Fried . | . . . . . . . Impact Corruptions 2 | . . . . . . 2 Robots Melted . | . . . . . . . Combat Hostiles . | . . . . . . . Parts Melted . | . . . . . . . Heat Transferred . | . . . . . . . Parts Sabotaged . | . . . . . . . Parts Stolen . | . . . . . . . Parts Stripped . | . . . . . . . Power Chain Reactions . | . . . . . . . Missiles Intercepted . | . . . . . . . Alert | -11 -10 -10 -9 -9 -7 -7 ------- Run | Scr Mat Min Mat Min Zio Dee Peak Influence 136 | . 30 136 52 19 . . Initial 52 | . . 11 52 19 . . Average 47 | . 8 65 52 19 . . Maximum Alert Level . | . . . . . . . Low Security (%) 100 | 100 100 100 100 100 . . Level 1 . | . . . . . . . Level 2 . | . . . . . . . Level 3 . | . . . . . . . Level 4 . | . . . . . . . Level 5 . | . . . . . . . High Security . | . . . . . . . Max Security . | . . . . . . . Squads Dispatched 1 | . 1 . . . . . Investigation . | . . . . . . . Extermination . | . . . . . . . Reinforcement 1 | . 1 . . . . . Assault . | . . . . . . . Garrison . | . . . . . . . Intercept . | . . . . . . . Searches Triggered . | . . . . . . . Construction Impeded . | . . . . . . . Haulers Reinforced . | . . . . . . . Active Scanning Responses . | . . . . . . . Cargo Convoy Interrupts . | . . . . . . . Stealth | -11 -10 -10 -9 -9 -7 -7 --------- Run | Scr Mat Min Mat Min Zio Dee Distress Signals . | . . . . . . . Communications Jammed . | . . . . . . . Distress Signals . | . . . . . . . Times Spotted 12 | . 5 4 . . . 3 Peak Tracking Total 4 | . 4 3 . . . 3 Tactical Retreats 2 | . . 2 . . . . Traps | -11 -10 -10 -9 -9 -7 -7 ------- Run | Scr Mat Min Mat Min Zio Dee Traps Triggered 1 | . . 1 . . . . Indirectly . | . . . . . . . Trap Hack Attempts . | . . . . . . . Triggered . | . . . . . . . Disarmed . | . . . . . . . Reprogrammed . | . . . . . . . Reused . | . . . . . . . Traps Extracted . | . . . . . . . Installed . | . . . . . . . Triggered . | . . . . . . . Machines | -11 -10 -10 -9 -9 -7 -7 ---------- Run | Scr Mat Min Mat Min Zio Dee Machines Disabled 1 | . . . . . . 1 Max in Single Turn . | . . . . . . . Machines Sabotaged . | . . . . . . . Garrisons Compromised . | . . . . . . . Overloaded Fab Kills . | . . . . . . . Hacking | -11 -10 -10 -9 -9 -7 -7 --------- Run | Scr Mat Min Mat Min Zio Dee Machines Accessed 1 | . . 1 . . . . Terminals . | . . . . . . . Fabricators . | . . . . . . . Repair Stations . | . . . . . . . Recycling Units . | . . . . . . . Scanalyzers . | . . . . . . . Garrison Access . | . . . . . . . Total Hacks 1 | . . 1 . . . . Successful 1 | . . 1 . . . . Failed . | . . . . . . . Catastrophic . | . . . . . . . Database Lockouts . | . . . . . . . Manual 1 | . . . . . 1 . Terminals . | . . . . . . . Fabricators . | . . . . . . . Repair Stations . | . . . . . . . Recycling Units . | . . . . . . . Scanalyzers . | . . . . . . . Garrison Access . | . . . . . . . Terminal Hacks 1 | . . 1 . . . . Open Door 1 | . . 1 . . . . Fabricator Hacks . | . . . . . . . Repair Station Hacks . | . . . . . . . Recycling Unit Hacks . | . . . . . . . Scanalyzer . | . . . . . . . Garrison Access Hacks . | . . . . . . . Unauthorized Hacks . | . . . . . . . Terminals . | . . . . . . . Fabricators . | . . . . . . . Repair Stations . | . . . . . . . Recycling Units . | . . . . . . . Scanalyzers . | . . . . . . . Garrison Access . | . . . . . . . Data Cores Recovered . | . . . . . . . Used . | . . . . . . . Hacking Detections . | . . . . . . . Full Trace Events . | . . . . . . . Feedback Events . | . . . . . . . Feedback Blocked . | . . . . . . . Robot Schematics Acquired . | . . . . . . . Robots Built . | . . . . . . . Authchips . | . . . . . . . Time . | . . . . . . . Total Robot Build Rating . | . . . . . . . Part Schematics Acquired . | . . . . . . . Parts Built . | . . . . . . . Authchips . | . . . . . . . Time . | . . . . . . . Total Part Build Rating . | . . . . . . . Parts Repaired . | . . . . . . . Time . | . . . . . . . Parts Recycled . | . . . . . . . Recycled Matter . | . . . . . . . Retrieved Matter . | . . . . . . . Retrieved Components . | . . . . . . . Parts Scanalyzed . | . . . . . . . Part Schematics Acquired . | . . . . . . . Parts Damaged . | . . . . . . . Bothacking | -11 -10 -10 -9 -9 -7 -7 ------------ Run | Scr Mat Min Mat Min Zio Dee Used RIF Installer . | . . . . . . . Robots Hacked . | . . . . . . . Non-combat . | . . . . . . . Combat . | . . . . . . . Robot Hacks Applied . | . . . . . . . Relay Couplers Released . | . . . . . . . Fabnet Peak Effective % . | . . . . . . . Robots Rewired . | . . . . . . . Allies Hacked . | . . . . . . . Hacks Repelled . | . . . . . . . Allies | -11 -10 -10 -9 -9 -7 -7 -------- Run | Scr Mat Min Mat Min Zio Dee Total Allies 11 | . . . . . 11 . Largest Group 11 | . . . . . 11 8 Highest-Rated Group 371 | . . . . . 371 281 Highest-Rated Ally 51 | . . . . . 51 51 Total Orders . | . . . . . . . Ally Attacks 21 | . . . . . . 21 Total Damage 317 | . . . . . . 317 Kills 5 | . . . . . . 5 Allies Corrupted 1 | . . . . . 1 . Allies Melted . | . . . . . . . Intel | -11 -10 -10 -9 -9 -7 -7 ------- Run | Scr Mat Min Mat Min Zio Dee Robot Analysis Total . | . . . . . . . Derelict Logs Recovered 2 | . . 1 . . 1 . Drone Launches . | . . . . . . . Drone Recoveries . | . . . . . . . Exploration | -11 -10 -10 -9 -9 -7 -7 ------------- Run | Scr Mat Min Mat Min Zio Dee Turns Passed 1262 | 9 58 160 5 6 825 199 Spaces Moved 1921 | 18 115 275 9 13 1344 147 Core 1762 | 18 115 275 9 13 1323 9 Treads . | . . . . . . . Legs 159 | . . . . . 21 138 Wheels . | . . . . . . . Hover . | . . . . . . . Flight . | . . . . . . . Fastest Speed 50 | 50 50 50 50 50 50 50 Average Speed 56 | 50 50 51 50 50 51 115 Slowest Speed 120 | 50 50 100 50 50 120 120 Overloaded Moves . | . . . . . . . Propulsion Burnouts . | . . . . . . . Robots Hopped . | . . . . . . . Cave-ins Triggered . | . . . . . . . Exploration Rate (%) 31 | 3 35 65 3 7 87 23 Regions Visited 6 Branch Regions 4 Pre-discovered Areas 2 | . . . . . 2 . Known Exits Taken 2 | . . . 1 . 1 . Unknown Exits Taken 4 | 1 1 1 . 1 . . Scrap Searched 4 | . . 1 . . 3 . Spaces Dug 21 | . . 12 . . 9 . Terrain Destroyed 44 | . . 35 . . 9 . Melee 9 | . . . . . 9 . Projectile . | . . . . . . . AOE 35 | . . 35 . . . . Terrain Rammed . | . . . . . . . Walls Destroyed . | . . . . . . . Machines Disabled . | . . . . . . . Actions | -11 -10 -10 -9 -9 -7 -7 --------- Run | Scr Mat Min Mat Min Zio Dee Total 2078 | 17 114 290 8 12 1467 170 Wait 99 | . . . . . 93 6 Move 1915 | 17 114 274 8 12 1343 147 Hop . | . . . . . . . Pick Up 17 | . . 6 . . 5 6 Fast Attach . | . . . . . . . Attach 13 | . . 4 . . 5 4 Detach 2 | . . 1 . . 1 . Swap 2 | . . . . . 2 . Drop 3 | . . 1 . . 2 . Fire 3 | . . 3 . . . . Melee 22 | . . . . . 16 6 Ram 1 | . . 1 . . . . Kick . | . . . . . . . Crush . | . . . . . . . Escape Stasis . | . . . . . . . Rewire 1 | . . . . . . 1 Trap . | . . . . . . . Miscellaneous . | . . . . . . . Route ------- -11/Scrapyard -10/Materials -10/Mines -9/Materials (discovered 2 exits: *Min x2) -9/Mines -7/Zion -7/Deep Caves History --------- Turn | Location | Event 2 | -11/Scrapyard | Met Revision 17 5 | -11/Scrapyard | Discovered new exit (range 12) 10 | -11/Scrapyard | Entered Materials 65 | -10/Materials | Discovered new exit (range 6) 68 | -10/Materials | Entered Mines 76 | -10/Mines | Found a damaged Exp. Sensor Array with a note attached 77 | -10/Mines | Found Prototype Device 119 | -10/Mines | Met a Derelict who couldn't figure out how to use a Trap Extractor 140 | -10/Mines | Core integrity fell below 50% 149 | -10/Mines | Learned 2 Materials zone layouts 151 | -10/Mines | A weapon hastily lodged in a ceiling crevice suddenly fell to the ground 169 | -10/Mines | Received a Rocket Launcher from a helpful Derelict 218 | -10/Mines | Discovered new exit (range 19) 228 | -10/Mines | Entered Materials 228 | -9/Materials | Evolved 2 slots: Propulsion x2 228 | -9/Materials | Discovered new exit (range 7) 229 | -9/Materials | Identified exit to Mines 233 | -9/Materials | Entered Mines 236 | -9/Mines | A Derelict revealed a hidden shortcut to a safe place 239 | -9/Mines | Entered Zion 301 | -7/Zion | Build established: Mutant 314 | -7/Zion | Learned Factory emergency access door positions 325 | -7/Zion | Found Prototype Device 435 | -7/Zion | Learned location of Quarantine (-3) 468 | -7/Zion | Given the Hacking Drone Bay 468 | -7/Zion | Identified Exp. Sensor Array 469 | -7/Zion | Found Prototype Device 470 | -7/Zion | Identified Hacking Drone Bay 491 | -7/Zion | Identified Bomb Factory No. 2 522 | -7/Zion | Learned location of Armory (-4) 546 | -7/Zion | Gained Derelict followers 628 | -7/Zion | Gained Derelict followers 822 | -7/Zion | Imprinted 824 | -7/Zion | Declared Zion's savior 1056 | -7/Zion | Discovered new exit (range 5) 1060 | -7/Zion | Saw the warning signs outside the Deep Caves entrance 1063 | -7/Zion | Identified exit to Deep Caves 1064 | -7/Zion | Entered Deep Caves 1064 | -7/Deep Caves | Accompanied by 8 allies 1203 | -7/Deep Caves | Z-Facility disabled 1229 | -7/Deep Caves | Attacked by Z-Imprinter 1258 | -7/Deep Caves | Core integrity fell below 50% 1262 | -7/Deep Caves | Core integrity fell below 20% 1263 | -7/Deep Caves | Destroyed by Z-Imprinter with Zionite Laser-M Last Messages --------------- 01207_ 05-QD2(M) destroyed. 01214_ Acquired Mak. Hacking Suite. Z-Imprinter: GET AWAY FROM HERE! I've worked too hard for our future just to have you ruin everything! 01237_ Flexi-carbon Leg destroyed. 01240_ RC-C0F(g) destroyed. 01241_ Imp. Deuterium Engine destroyed. 01243_ Carbon-fiber Leg destroyed. 01244_ Z-Imprinter suffers critical hit (Smash). 01244_ Destroyed Prototype Storage. 01244_ Z-Imprinter system corrupted by crushing effect. 01245_ Exp. Sensor Array destroyed. 01246_ Z-Imprinter knocked back. 01248_ Imp. Medium Armor Plating destroyed. 01250_ Flexi-carbon Leg destroyed. 01251_ Z-Imprinter knocked back. 01254_ Destroyed Prototype Storage. 01254_ Z-Imprinter system corrupted by crushing effect. 01254_ Z-Imprinter knocked back. 01259_ Mak. Hammer destroyed. Map ----- +----------------------------------------------------+ | | | | | | | | | | | | | | | | | | | | | | | | | | | ?????????????????????????????????????????????????? | | ???????????????????????????????????????????????### | | ?????????????? ???????????????????????????????## | | ????????????? ?????###??????????????????#### | | ????????????? ##?### ##?????######?????## ## | | ??????????? ## # #???### ##???## ! | | ????????? ##### #???# ## | | ????????? #???# | | ????????? #???## | | ?????????? ##????###### | | ?????????? ;#?????????# | | ??????????""" ##?????????## | | ?????????"""" @ ############# | | ????????""""" | | ????????""""" [ | | ???????""" !%| % % | | ?????"""""""" = #"######### | | ?????"""""""" ###???????### | | ????"""""""" I ##???????# | | ???"""""""""" z #??????????### | | ???""""" "*" z #????????????? | | ???""""""%=%* #???????????? | | ???""""" =% #???????????? | | ???""""""% #???????????? | | ???""""""= ##???????????? | | ???"""""""" #????????????? | | ????"""""""""%= #???????????? | | ????"" = #???????????? | | ????"" """ ##???????????? | | ????"" """"" ##???????# | | ????"" """"""" #?????????????? | | ????"" """"""" ?????????????? | | ????""??"""""" ?????????????? | | ?????????"""" ???????????????? | | ???????????? ?????????????????? | | ??????????? * ??????????????????? | | ???????????""%= ????????????????????? | +----------------------------------------------------+ Best States ------------- Heat Dissipation 28 Energy Generation 16 Energy Capacity 290 Matter Stores 130 Matter Capacity 300 Sight Range 20 Robot Scan Range 20 Terrain Scan Density 10 Evasion (%) 55 Item Schematics ----------------- None Robot Schematics ------------------ None Fabricated ------------ Nothing Alien Tech Used ----------------- None Achievements -------------- Adventurer Signs Are For Wimps Challenges ------------ None Game ------ Seed ThermicElectronSword Manual? 0 Play Time 00:22:38 Cumulative 39.2 hours Start 2022.11.17 @ 11:38:27 End 2022.11.17 @ 11:59:12 Sessions 1 Manual Loads 0 Difficulty Rogue Special Mode None Game No. 20 Rogue 14 Adventurer 6 Explorer 0 Win Type - Total 0 Types 0/0/0/0/0/0/0/0/0 Lore% 31 Gallery% 37 Achievement% 32 Wizard Run 0 Options --------- ASCII 0 Keyboard 0 Movement Numpad Keybinds 0 Fullscreen 1 Font 18/SmallcapsGlow Map View 76x50 Tactical HUD 1 Map Filters NONE Filters NONE Steam 1 RUN: cbca1011-19a0-4342-b0d8-940b53f6c70a